bitfinex-derivatives/quotes_ETHF0:USTF0_20250903
["timestamp","ask_amount","ask_price","bid_price","bid_amount"]
[1756896819408,0.8951,4368.9,4368.8,1.31371773]
[1756896819908,0.8951,4368.9,4368.8,1.51211773]
[1756896820503,0.8951,4368.9,4368.8,1.31371773]
[1756896821708,0.8951,4368.9,4368.8,1.51231773]
[1756896823505,0.8951,4368.9,4368.8,1.11131773]
[1756896823805,0.8951,4368.9,4368.8,0.88031773]
[1756896824008,0.8951,4368.9,4367.9,1.63749961]
[1756896824009,0.6965,4368.6,4367.9,1.63749961]
[1756896824312,0.6965,4367.7,4367.6,2.03514683]
[1756896824499,0.6965,4367.7,4367.6,42.12191773]
[1756896824904,0.6965,4367.7,4367.6,42.30514654]
[1756896825203,0.6965,4367.7,4367.6,42.07414654]
[1756896825403,0.6965,4367.7,4367.6,42.30514654]
[1756896827403,0.6965,4367.7,4367.6,42.56124654]
[1756896828310,0.6965,4367.7,4367.6,44.58756939]
[1756896829311,0.5046,4367.7,4367.6,44.58756939]
[1756896830013,0.5046,4367.7,4367.6,43.45115166]
[1756896830212,0.5046,4367.7,4367.6,44.58756939]
[1756896833408,0.5046,4367.7,4367.6,42.56124654]
[1756896833608,0.5046,4367.7,4367.6,42.33024654]
[1756896833808,0.5046,4367.7,4367.6,42.56124654]
[1756896835611,0.3062,4367.7,4367.6,42.56124654]
[1756896837207,0.3062,4367.7,4367.6,42.30514654]
[1756896839109,0.3062,4367.7,4367.6,42.56124654]
[1756896840619,0.3062,4367.7,4367.6,41.91131773]
[1756896841015,0.3062,4367.7,4367.6,42.16741773]
[1756896842008,4.3903,4367.7,4367.3,2.02632285]
[1756896842207,0.3903,4367.4,4367.1,1.86212567]
[1756896842422,0.6965,4367.1,4366.9,1.63112567]
[1756896842619,0.6965,4366.9,4366.8,0.2106]
[1756896842820,0.6965,4366.9,4366.8,0.4416]
[1756896844014,0.6965,4366.7,4366.6,1.63112567]
[1756896844315,0.6965,4366.7,4366.6,0.231]
[1756896845819,0.1984,4366.2,4366.1,40.8]
[1756896846021,0.5046,4366.2,4366.1,40.8]
[1756896846523,0.5046,4366.2,4366.1,41.031]
[1756896848022,0.5046,4366.2,4366.1,41.2871]
[1756896849016,0.5046,4366.2,4366.1,41.0561]
[1756896849326,0.5046,4366.2,4366.1,42.16741773]
[1756896850224,0.079,4367.8,4366.5,0.2559]
[1756896850417,0.117,4368.0,4367.7,0.4092]
[1756896850618,0.117,4368.0,4367.7,0.88031773]
[1756896850822,0.5073,4368.0,4367.9,0.2106]
[1756896851124,0.5073,4368.0,4367.4,1.11131773]
[1756896851323,0.3154,4367.5,4367.4,1.52051773]
[1756896851524,0.618,4367.5,4367.4,1.77691773]
[1756896852315,0.618,4367.5,4367.4,1.52051773]
[1756896852521,0.3026,4367.5,4367.4,1.77691773]
[1756896853124,0.99731773,4368.0,4367.4,0.8966]
[1756896853430,0.99731773,4368.0,4367.4,0.6402]
[1756896853431,0.8453,4367.5,4367.4,0.6402]
[1756896854127,0.8453,4367.5,4367.2,0.88031773]
[1756896854128,0.5089,4366.7,4366.6,0.6481]
[1756896856029,0.3026,4366.7,4366.6,0.6481]
[1756896856637,0.5089,4366.7,4366.6,0.6481]
[1756896859237,0.3026,4366.7,4366.6,0.6481]
[1756896859436,0.3026,4366.9,4366.8,0.6481]
[1756896859841,0.5089,4367.4,4367.3,0.3917]
[1756896860042,0.3026,4367.4,4367.3,1.7244373]
[1756896860942,0.7205,4367.4,4367.3,0.3917]
[1756896861143,0.7205,4367.4,4367.3,0.193]
[1756896861640,0.8453,4367.0,4366.8,0.2564]
[1756896861843,0.7205,4366.9,4366.8,0.424]
[1756896862543,0.7205,4366.9,4366.8,0.8791]
[1756896863145,0.7205,4366.9,4366.8,0.6227]
[1756896863344,0.7205,4366.9,4366.8,0.3917]
[1756896864848,0.4179,4366.9,4366.8,0.3917]
[1756896865338,0.3026,4367.4,4366.9,0.2564]
[1756896865539,0.7205,4367.4,4367.3,0.193]
[1756896865745,0.7205,4367.4,4367.0,0.231]
[1756896866851,0.4179,4367.4,4366.8,1.63112567]
[1756896867049,0.5427,4367.0,4366.9,0.3917]
[1756896867249,0.8453,4367.0,4366.9,0.3917]
[1756896868747,0.3026,4367.0,4366.9,0.6481]
[1756896868941,0.3311,4367.5,4367.4,0.3917]
[1756896869147,0.3311,4367.5,4367.4,0.6481]
[1756896869553,0.117,4368.0,4367.4,0.3917]
[1756896869848,0.6337,4367.5,4367.4,0.6481]
[1756896870249,0.8453,4367.5,4367.4,0.3917]
[1756896871656,0.8453,4367.5,4367.4,0.6481]
[1756896873350,0.8453,4367.5,4367.4,0.3917]
[1756896876056,0.3026,4367.4,4367.2,1.63112567]
[1756896876267,0.7205,4367.2,4367.1,1.63112567]
[1756896877154,0.7205,4367.2,4367.1,1.82412567]
[1756896877352,0.7205,4367.2,4367.1,2.02282567]
[1756896877662,0.5089,4367.2,4367.1,0.6481]
[1756896878457,0.7205,4367.2,4367.1,0.6227]
[1756896878859,1.0763373,4367.9,4367.1,0.231]
[1756896879059,1.0763373,4367.9,4367.2,1.6318731]
[1756896880460,1.0763373,4367.9,4367.1,0.231]
[1756896880461,1.0763373,4367.9,4367.3,1.6318731]
[1756896881156,1.0763373,4368.2,4367.3,1.6318731]
[1756896881554,0.22895,4368.1,4367.3,1.6318731]
[1756896881955,1.0763373,4367.9,4367.3,1.6318731]
[1756896883166,1.0763373,4367.9,4367.2,1.6318731]
[1756896884060,1.3052973,4367.9,4367.2,1.6318731]
[1756896884666,0.394,4367.3,4367.2,1.6318731]
[1756896884967,0.6939,4367.3,4367.2,1.6318731]
[1756896885666,0.6939,4367.3,4366.9,0.4871]
[1756896885867,0.1938,4367.0,4366.9,0.4871]
[1756896886169,0.4937,4367.0,4366.9,0.4871]
[1756896887468,0.8111,4367.0,4366.8,2.02632285]
[1756896887659,0.6939,4366.9,4366.8,2.02632285]
[1756896887859,0.2999,4366.8,4366.6,2.02632285]
[1756896888069,0.1172,4367.0,4366.6,2.28242285]
[1756896888070,0.4937,4366.7,4366.6,2.28242285]
[1756896888266,0.1172,4367.0,4366.6,3.10266015]
[1756896888463,0.4171,4367.0,4366.7,0.2561]
[1756896888663,0.4171,4367.0,4366.6,3.10266015]
[1756896888664,0.2999,4366.7,4366.6,2.28242285]
[1756896890160,0.6939,4366.7,4366.6,2.02632285]
[1756896890563,0.6939,4366.7,4366.6,2.28242285]
[1756896891771,0.6939,4366.7,4366.6,0.2561]
[1756896893272,0.2999,4366.7,4366.6,0.2561]
[1756896893571,0.1172,4367.0,4366.6,0.2561]
[1756896893773,0.4937,4366.9,4366.8,0.2561]
[1756896894271,0.6939,4366.9,4366.7,0.231]
[1756896897060,0.2999,4366.8,4366.5,2.02632285]
[1756896897265,0.394,4366.7,4366.6,0.231]
[1756896897465,0.6939,4366.7,4366.6,0.231]
[1756896900369,0.6939,4366.7,4366.4,2.02632285]
[1756896900570,0.8111,4366.5,4366.4,2.02632285]
[1756896900777,0.8111,4366.5,4366.4,0.231]
[1756896901566,0.1938,4366.2,4366.1,41.0561]
[1756896901772,0.4937,4366.2,4366.1,41.2871]
[1756896903874,0.4937,4366.2,4366.1,41.0561]
[1756896904072,0.4937,4366.2,4366.1,41.2871]
[1756896909873,0.4937,4366.2,4366.1,42.3634373]
[1756896910080,0.2999,4366.4,4366.2,0.2559]
[1756896910278,0.2999,4366.4,4366.3,0.231]
[1756896910577,0.2999,4366.4,4366.3,0.4869]
[1756896910970,0.1172,4367.5,4366.5,0.1084]
[1756896911167,0.394,4367.3,4367.1,2.70983829]
[1756896911367,1.0763373,4367.3,4367.0,1.63350099]
[1756896911568,0.7014,4366.9,4366.8,1.63350099]
[1756896911772,0.2902,4366.8,4366.7,1.86450099]
[1756896911970,0.7014,4366.8,4366.7,1.86450099]
[1756896912371,0.7014,4366.8,4366.7,0.231]
[1756896912771,0.7014,4366.8,4366.7,1.86496588]
[1756896912972,0.7014,4366.8,4366.7,0.231]
[1756896914474,0.2902,4366.7,4366.6,1.63396588]
[1756896914681,0.7014,4366.7,4366.6,1.63396588]
[1756896915882,0.7014,4366.7,4366.5,1.86496588]
[1756896916073,0.4112,4366.7,4366.5,1.86496588]
[1756896916272,0.2902,4366.6,4366.5,0.231]
[1756896916581,0.7014,4366.6,4366.5,0.231]
[1756896916980,0.4112,4366.6,4366.5,0.4428]
[1756896917282,0.7014,4366.6,4366.5,0.4428]
[1756896917788,0.7014,4366.6,4366.5,0.231]
[1756896918392,0.7014,4366.6,4366.5,0.4428]
[1756896919686,0.7014,4366.6,4366.5,0.6527]
[1756896921889,0.7014,4366.6,4366.1,2.02632285]
[1756896921890,0.7014,4366.2,4366.1,1.63629815]
[1756896922096,1.58276957,4366.2,4366.1,1.63629815]
[1756896922296,0.8269,4366.0,4365.9,1.63629815]
[1756896922490,0.8269,4366.0,4365.8,1.63629815]
[1756896922797,1.58276957,4365.9,4365.8,1.63629815]
[1756896923295,1.58276957,4365.9,4365.6,41.031]
[1756896923296,0.2902,4365.8,4365.6,41.031]
[1756896923497,0.4947,4365.7,4365.6,41.031]
[1756896925997,0.4947,4365.7,4365.6,40.8]
[1756896926300,0.7014,4365.7,4365.6,0.4428]
[1756896926597,0.7014,4365.7,4365.6,0.6527]
[1756896927293,0.8269,4365.5,4365.4,0.4217]
[1756896927493,0.8269,4365.5,4365.4,0.6781]
[1756896927687,0.8269,4365.5,4365.4,41.7101]
[1756896928397,0.2902,4365.5,4365.4,42.59146957]
[1756896928595,0.1255,4366.0,4365.8,0.4217]
[1756896928788,0.4947,4365.9,4365.8,0.4217]
[1756896928993,0.7014,4365.9,4365.8,0.4217]
[1756896930400,0.88136957,4367.6,4366.4,0.2564]
[1756896930597,0.1255,4368.0,4366.4,0.2564]
[1756896930598,0.33,4367.5,4367.4,0.4217]
[1756896931095,0.6202,4367.5,4367.4,0.6781]
[1756896932196,0.88136957,4367.9,4367.5,0.2564]
[1756896932197,0.2902,4367.9,4367.5,0.2564]
[1756896932404,0.2902,4368.4,4367.8,1.55946957]
[1756896932801,0.2902,4368.8,4368.3,0.6781]
[1756896933098,0.6647,4368.9,4368.8,0.6781]
[1756896933301,0.8714,4368.9,4368.8,0.4217]
[1756896933502,0.8714,4368.9,4368.8,0.2118]
[1756896937903,0.2902,4368.8,4368.5,40.8]
[1756896938098,0.7014,4368.6,4368.5,41.0564]
[1756896938600,0.17,4368.9,4368.5,41.0564]
[1756896938601,0.17,4368.9,4368.8,0.6781]
[1756896938801,0.17,4368.9,4368.8,1.79146957]
[1756896939802,0.2902,4369.7,4369.6,0.6781]
[1756896939996,0.2902,4369.7,4369.6,1.55946957]
[1756896940205,0.2902,4369.7,4369.6,42.35946957]
[1756896941506,0.2902,4369.7,4369.6,42.59146957]
[1756896942108,0.2902,4369.7,4369.6,41.4537]
[1756896942509,0.2902,4369.7,4369.6,41.2217]
[1756896942807,0.2902,4369.7,4369.6,41.4537]
[1756896943496,0.2902,4369.7,4369.6,41.2217]
[1756896943703,4.2902,4369.7,4369.6,40.8]
[1756896943902,0.3833,4369.4,4369.3,0.437]
[1756896944208,0.6827,4369.4,4369.3,0.437]
[1756896944408,0.6827,4369.4,4369.3,41.237]
[1756896945007,0.6827,4369.4,4369.3,41.005]
[1756896946008,0.6827,4369.4,4369.3,0.205]
[1756896949603,0.4914,4369.4,4369.3,0.6645]
[1756896949801,0.2994,4369.4,4369.3,0.6645]
[1756896950006,0.4914,4369.4,4369.3,0.6645]
[1756896950514,0.6827,4369.4,4369.3,0.4085]
[1756896951714,0.2994,4369.3,4369.1,40.8]
[1756896951914,0.6827,4369.3,4369.2,0.4085]
[1756896953616,0.6827,4369.3,4369.2,0.8965]
[1756896953809,0.6827,4369.3,4369.2,0.6405]
[1756896955507,0.6827,4369.3,4369.2,0.437]
[1756896958917,0.6827,4369.3,4369.2,0.6405]
[1756896960917,0.6827,4369.3,4368.7,1.63237527]
[1756896960918,0.2994,4369.2,4368.7,1.63237527]
[1756896961114,0.2994,4369.2,4366.6,0.88136957]
[1756896961115,0.8017,4368.5,4368.4,0.205]
[1756896961315,0.8017,4368.5,4368.4,0.84901]
[1756896961512,0.8017,4368.5,4368.4,0.437]
[1756896962325,0.8017,4368.5,4368.4,0.8965]
[1756896963025,0.8017,4368.5,4368.4,0.6405]
[1756896966725,0.6104,4368.5,4368.4,0.8965]
[1756896966931,0.2994,4368.5,4368.4,0.8965]
[1756896967326,0.4914,4368.5,4368.4,0.8965]
[1756896967831,0.2994,4368.5,4368.4,1.3085]
[1756896968130,0.2994,4368.5,4368.4,0.8965]
[1756896968632,0.119,4369.0,4368.4,0.8965]
[1756896968633,0.311,4369.0,4368.9,0.4085]
[1756896968828,0.192,4369.0,4368.9,2.18882957]
[1756896969130,0.88136957,4369.7,4368.9,2.18882957]
[1756896969131,0.88136957,4369.7,4368.9,1.77686957]
[1756896969331,0.88136957,4369.7,4368.9,1.52086957]
[1756896969531,0.6827,4369.4,4369.3,0.205]
[1756896969730,0.6827,4369.4,4369.3,0.4085]
[1756896969931,0.6827,4369.4,4369.3,0.205]
[1756896970329,0.6827,4369.4,4369.3,0.4085]
[1756896973226,0.6827,4369.4,4369.1,0.232]
[1756896974133,0.6827,4369.4,4369.1,0.64394]
[1756896974328,0.3833,4369.4,4369.1,0.64394]
[1756896974534,0.689,4369.3,4369.2,0.1922]
[1756896978133,0.689,4369.3,4369.2,0.60413]
[1756896978530,0.689,4369.3,4368.7,1.63237527]
[1756896978738,1.57036957,4368.8,4368.7,0.81658]
[1756896978938,0.689,4368.8,4368.7,0.4046]
[1756896979137,0.689,4368.8,4368.7,0.81658]
[1756896979329,0.689,4368.8,4368.7,1.07248]
[1756896979526,0.689,4368.8,4368.7,0.81658]
[1756896981338,0.689,4368.8,4368.7,0.4046]
[1756896983644,0.689,4368.8,4368.7,0.6605]
[1756896984035,0.1204,4369.0,4368.8,0.2559]
[1756896984036,0.2905,4369.0,4368.8,0.2559]
[1756896984344,0.2905,4369.0,4368.9,3.59916624]
[1756896984544,0.6181,4369.0,4368.9,2.52387527]
[1756896984740,0.8094,4369.0,4368.9,2.26797527]
[1756896985242,0.2905,4369.0,4368.9,2.52387527]
[1756896985444,1.07529097,4369.7,4368.9,2.26797527]
[1756896985638,0.4977,4369.4,4369.3,1.73579097]
[1756896985848,0.1204,4371.0,4370.4,0.4046]
[1756896986048,0.1204,4371.0,4370.4,1.73579097]
[1756896986244,0.2072,4370.5,4370.4,1.73579097]
[1756896986446,0.4977,4370.5,4370.4,1.73579097]
[1756896986647,0.4977,4370.5,4370.4,0.6605]
[1756896986945,0.6181,4370.5,4370.4,41.2046]
[1756896987140,0.6181,4370.5,4370.4,41.4605]
[1756896988641,0.2905,4370.5,4370.4,41.4605]
[1756896988841,0.1204,4371.0,4370.4,41.4605]
[1756896988842,0.1204,4371.0,4370.4,41.2046]
[1756896989347,0.2072,4370.5,4370.4,41.2046]
[1756896989548,0.4977,4370.5,4370.4,41.4605]
[1756896989747,0.6181,4370.5,4370.4,41.4605]
[1756896990447,0.6181,4370.5,4370.4,41.2046]
[1756896990849,0.2905,4370.5,4370.4,41.4605]
[1756896991452,0.2072,4370.9,4370.8,0.4046]
[1756896991657,0.4977,4370.9,4370.8,0.6605]
[1756896992259,0.689,4370.9,4370.8,0.4046]
[1756896994259,0.1204,4371.0,4370.4,40.8]
[1756896994260,0.4109,4370.5,4370.4,40.8]
[1756896994458,0.4109,4370.5,4370.4,41.031]
[1756896995063,0.3276,4371.0,4370.9,0.6605]
[1756896995560,0.6181,4371.0,4370.9,0.8915]
[1756896996962,0.6181,4371.0,4370.9,0.6356]
[1756896997164,0.8094,4371.0,4370.9,0.6356]
[1756896998264,0.8094,4371.0,4370.9,0.8915]
[1756896999353,0.3276,4371.5,4371.4,0.4046]
[1756896999658,0.3276,4371.5,4371.4,0.6605]
[1756897000064,0.2905,4371.5,4371.4,0.6605]
[1756897000266,0.3276,4372.0,4371.9,0.4046]
[1756897000470,0.6181,4372.0,4371.9,1.73579097]
[1756897000767,0.8094,4371.0,4370.9,0.4046]
[1756897000969,0.8094,4371.0,4370.9,0.6356]
[1756897001271,0.8094,4371.0,4370.9,1.96679097]
[1756897001466,0.6181,4371.0,4370.9,1.96679097]
[1756897002063,0.1204,4371.5,4371.1,0.41175]
[1756897002365,0.4987,4371.4,4371.3,0.6732]
[1756897002560,0.7044,4371.4,4371.3,0.6488]
[1756897005371,0.7044,4371.4,4371.3,0.9042]
[1756897005774,0.7044,4371.4,4371.3,0.6488]
[1756897005979,0.7044,4371.4,4371.3,0.231]
[1756897006165,0.7044,4371.4,4371.3,0.4408]
[1756897006362,0.2892,4371.4,4371.3,1.97949097]
[1756897006668,0.3299,4372.0,4371.9,0.4178]
[1756897006862,0.5356,4372.0,4371.9,0.4178]
[1756897007064,0.8248,4372.0,4371.9,0.4178]
[1756897007265,0.4152,4371.7,4371.6,40.8]
[1756897007468,0.7044,4371.7,4371.6,40.8]
[1756897007670,0.7044,4371.7,4371.6,41.0554]
[1756897008077,0.7044,4371.7,4371.6,40.8]
[1756897008574,0.6191,4372.0,4371.9,0.6732]
[1756897008768,0.8248,4372.0,4371.9,0.4178]
[1756897008972,0.5356,4372.0,4371.6,41.031]
[1756897009175,0.4152,4371.7,4371.6,41.031]
[1756897009388,0.7044,4371.7,4371.6,41.031]
[1756897010882,0.1204,4372.0,4371.3,0.2554]
[1756897010883,0.4152,4371.4,4371.3,0.231]
[1756897011080,0.7044,4371.4,4371.3,0.231]
[1756897011471,0.7044,4371.4,4371.3,0.4408]
[1756897011673,0.7044,4371.4,4371.3,0.6488]
[1756897014181,0.4987,4371.4,4371.3,1.97949097]
[1756897014674,0.4987,4371.4,4371.3,0.9042]
[1756897014982,0.7044,4371.4,4371.3,0.6488]
[1756897015983,0.4987,4371.4,4371.3,0.9042]
[1756897016881,0.2892,4371.9,4371.3,1.31592]
[1756897017079,0.4987,4371.7,4371.6,1.74849097]
[1756897017379,0.7044,4371.7,4371.6,0.4178]
[1756897017895,0.4987,4371.7,4371.6,0.6732]
[1756897018080,0.2892,4371.7,4371.6,1.74849097]
[1756897018385,0.2892,4371.7,4371.6,1.97949097]
[1756897019180,0.2892,4371.9,4371.8,0.2098]
[1756897019381,0.4987,4372.4,4372.3,0.6732]
[1756897019588,0.4987,4372.4,4372.3,1.97949097]
[1756897019589,0.2892,4372.4,4372.3,1.97949097]
[1756897020084,0.7044,4372.4,4372.3,1.49309097]
[1756897020383,0.7044,4372.4,4372.3,0.6488]
[1756897020688,0.2892,4372.4,4372.3,0.9042]
[1756897020987,0.7044,4372.4,4372.3,0.4408]
[1756897021378,0.12,4372.0,4371.9,0.231]
[1756897021583,0.5352,4372.0,4371.5,1.6295475]
[1756897021780,0.609,4371.9,4371.8,0.2098]
[1756897022082,0.8185,4371.9,4371.8,41.0098]
[1756897022484,0.8185,4371.9,4371.8,41.2652]
[1756897022684,0.6128,4371.9,4371.8,41.2652]
[1756897022881,0.6128,4371.9,4371.8,41.0098]
[1756897023482,0.6128,4371.9,4371.8,41.031]
[1756897024188,0.2057,4371.5,4371.4,1.6295475]
[1756897024381,0.8244,4371.5,4371.4,0.6488]
[1756897024781,0.8244,4371.5,4371.4,41.4488]
[1756897024982,0.1141,4371.9,4371.8,0.2554]
[1756897025191,0.1141,4371.9,4371.8,1.97949097]
[1756897025577,0.1141,4371.9,4371.8,42.77949097]
[1756897026187,0.1141,4371.9,4371.8,44.40903847]
[1756897026983,0.1141,4371.9,4371.8,43.3337475]
[1756897027188,0.1141,4371.9,4371.8,44.40903847]
[1756897029797,0.4033,4371.9,4371.8,43.3337475]
[1756897029982,0.4033,4371.9,4371.8,44.40903847]
[1756897030283,0.1141,4371.9,4371.8,44.17903847]
[1756897030484,0.4033,4371.9,4371.8,41.4742]
[1756897030692,0.4033,4371.9,4371.8,41.7052]
[1756897030887,0.4033,4371.9,4371.8,41.4742]
[1756897031190,0.4033,4371.9,4371.8,41.7052]
[1756897032294,0.1141,4371.9,4371.8,291.7052]
[1756897032793,0.1141,4371.9,4371.8,292.11689]
[1756897036191,0.1141,4371.9,4371.8,291.7052]
[1756897036497,0.1141,4371.9,4371.8,292.11689]
[1756897036699,0.4241,4371.9,4371.8,292.78049097]
[1756897037898,0.31,4371.9,4371.8,292.78049097]
[1756897039300,0.31,4371.9,4371.8,250.6488]
[1756897039696,0.31,4371.9,4371.8,250.4178]
[1756897039895,0.31,4371.9,4371.8,250.6488]
[1756897040902,0.31,4371.9,4371.8,250.9052]
[1756897041398,0.31,4371.9,4371.8,251.98049097]
[1756897041600,0.31,4371.9,4371.8,251.78424742]
[1756897042003,0.31,4371.9,4371.8,251.52784742]
[1756897042300,0.31,4371.9,4371.8,251.78424742]
[1756897042697,0.31,4371.9,4371.8,250.6742]
[1756897042899,0.31,4371.9,4371.8,251.78424742]
[1756897043605,0.4241,4372.1,4372.0,0.402]
[1756897043809,0.627,4372.1,4372.0,0.8894]
[1756897045099,0.8308,4372.1,4372.0,1.30924742]
[1756897045703,0.8437,4372.0,4371.9,1.62774215]
[1756897045898,0.8437,4372.0,4371.8,250.0]
[1756897045899,0.31,4371.9,4371.8,250.0]
[1756897049703,4.85855672,4371.9,4371.8,247.92748405]
[1756897050400,5.08729672,4371.9,4371.8,247.92748405]
[1756897050703,4.85855672,4371.9,4371.8,247.92748405]
[1756897051300,4.85855672,4371.9,4371.8,242.23988066]
[1756897051503,5.08955672,4371.9,4371.8,242.23988066]
[1756897052307,5.31829672,4371.9,4371.8,236.55227727]
[1756897052700,5.08955672,4371.9,4371.8,236.55227727]
[1756897055514,5.08955672,4371.9,4371.8,230.45007388]
[1756897055805,5.08955672,4371.9,4371.8,229.91947386]
[1756897056006,5.08955672,4371.9,4371.8,218.48267386]
[1756897056405,0.85855672,4371.9,4371.8,218.48267386]
[1756897056711,1.42004742,4371.9,4371.8,218.48267386]
[1756897056911,1.18904742,4371.9,4371.8,218.48267386]
[1756897057113,1.18904742,4371.9,4371.8,218.73907386]
[1756897057410,1.42104742,4371.9,4371.8,218.73907386]
[1756897057604,1.42104742,4371.9,4371.8,218.48267386]
[1756897058607,0.1141,4372.1,4372.0,0.402]
[1756897058808,0.1141,4372.1,4372.0,0.6584]
[1756897059402,0.1141,4372.1,4372.0,16.0944]
[1756897061704,0.1141,4372.1,4372.0,0.6584]
[1756897064406,0.2976,4372.3,4372.1,0.2566]
[1756897064606,0.7038,4372.3,4372.2,0.1996]
[1756897064807,0.74,4372.3,4372.2,0.3937]
[1756897065008,0.9358,4372.3,4372.2,0.3937]
[1756897065616,0.9358,4372.3,4372.2,0.6503]
[1756897065817,0.9358,4372.3,4372.2,0.3937]
[1756897066011,0.9358,4372.3,4371.8,218.73927386]
[1756897066012,0.6382,4372.3,4371.8,218.73927386]
[1756897066310,0.4062,4371.9,4371.8,218.48267386]
[1756897066616,0.9358,4371.9,4371.8,218.48267386]
[1756897067215,0.74,4371.9,4371.8,218.48267386]
[1756897068709,1.61904742,4371.9,4371.8,218.48267386]
[1756897069114,5.61904742,4371.9,4371.8,218.48267386]
[1756897069812,5.38704742,4371.9,4371.8,218.48267386]
[1756897070014,0.5296,4371.9,4371.8,219.61832128]
[1756897070221,0.508,4372.3,4372.2,0.6503]
[1756897070515,0.74,4372.3,4372.2,0.6503]
[1756897070916,0.74,4372.3,4372.2,0.3937]
[1756897071116,0.9358,4372.3,4372.2,0.3937]
[1756897071515,0.5277,4372.0,4371.9,0.1996]
[1756897071711,1.40674742,4372.0,4371.8,218.48267386]
[1756897071916,0.2976,4371.9,4371.8,218.73927386]
[1756897072115,0.5296,4371.9,4371.8,218.73927386]
[1756897072316,0.232,4371.9,4371.8,218.73927386]
[1756897072513,1.17664742,4372.3,4372.2,0.6503]
[1756897072514,0.508,4372.3,4372.2,0.6503]
[1756897072713,0.74,4372.3,4372.2,0.3937]
[1756897072919,1.81484742,4372.3,4372.2,0.1996]
[1756897073314,1.58284742,4372.3,4372.2,0.3937]
[1756897073516,0.9358,4372.3,4372.2,0.6503]
[1756897073712,0.9358,4372.3,4372.2,0.3937]
[1756897074120,0.9358,4372.3,4372.2,0.1996]
[1756897074917,0.5277,4372.0,4371.9,0.1996]
[1756897075119,1.40674742,4372.0,4371.9,0.1996]
[1756897075322,1.40674742,4372.0,4371.8,218.48267386]
[1756897075527,0.2976,4371.9,4371.8,218.48267386]
[1756897075821,0.2358,4372.5,4371.8,218.48267386]
[1756897075822,0.232,4372.4,4372.3,0.6503]
[1756897076224,0.5296,4372.4,4372.3,0.6503]
[1756897076520,0.5306,4372.4,4372.3,0.6503]
[1756897077113,0.233,4372.4,4372.3,0.6503]
[1756897077317,0.1143,4372.5,4372.4,0.2566]
[1756897077522,0.1143,4372.5,4372.4,1.52934742]
[1756897077523,0.3473,4372.5,4372.4,1.52934742]
[1756897078119,0.3473,4372.5,4372.4,0.6503]
[1756897082126,0.6449,4372.5,4372.4,0.6503]
[1756897082524,0.4119,4372.5,4372.4,0.6503]
[1756897082726,0.6449,4372.5,4372.4,0.6503]
[1756897083127,0.3473,4372.5,4372.4,0.6503]
[1756897083335,0.1143,4372.5,4372.4,0.6503]
[1756897083531,0.2976,4372.8,4372.4,0.6503]
[1756897083532,0.2976,4372.8,4372.4,12.0855]
[1756897083835,0.2976,4372.8,4372.3,0.87904742]
[1756897083836,0.7038,4373.4,4373.3,0.1941]
[1756897084030,0.9368,4373.4,4373.3,0.3937]
[1756897084235,0.9368,4373.4,4373.3,0.1996]
[1756897084529,0.2976,4373.3,4372.7,1.13564742]
[1756897084729,0.7038,4373.3,4373.2,0.2794]
[1756897084936,0.9368,4373.3,4373.2,0.2794]
[1756897085540,0.9368,4373.3,4372.5,0.1423]
[1756897085541,1.81584742,4373.3,4372.5,0.1423]
[1756897085732,1.58284742,4372.9,4372.8,0.1996]
[1756897087134,1.58284742,4372.9,4372.8,0.3937]
[1756897087734,1.81484742,4372.9,4372.8,0.3937]
[1756897088442,1.58284742,4372.9,4372.8,0.3937]
[1756897088739,1.81484742,4372.9,4372.8,0.3937]
[1756897090440,0.7038,4372.9,4372.8,0.3937]
[1756897090642,0.9358,4372.9,4372.8,0.3937]
[1756897091440,0.7038,4372.9,4372.8,0.3937]
[1756897091638,0.74,4372.9,4372.8,0.5352]
[1756897094442,0.508,4372.9,4372.8,0.5352]
[1756897094741,0.232,4373.0,4372.8,0.3937]
[1756897095043,0.232,4373.0,4372.9,11.8297]
[1756897095044,1.0309,4373.0,4372.9,11.8297]
[1756897095236,1.0309,4373.0,4372.9,0.3953]
[1756897095437,1.0309,4373.0,4372.9,11.4336]
[1756897095636,1.90994742,4373.0,4372.9,11.4336]
[1756897095940,1.90994742,4373.0,4372.9,11.6282]
[1756897097940,1.0309,4373.0,4372.9,11.6282]
[1756897100144,1.90994742,4373.0,4372.9,11.6282]
[1756897101036,1.0309,4373.0,4372.9,11.8289]
[1756897102038,0.8352,4373.0,4372.9,11.9704]
[1756897102644,0.6032,4373.0,4372.9,11.9704]
[1756897102836,0.8352,4373.0,4372.9,11.9704]
[1756897104143,0.6363,4373.0,4372.9,11.9704]
[1756897104341,0.2886,4373.0,4372.9,11.9704]
[1756897105043,0.4043,4373.0,4372.9,11.9704]
[1756897105440,0.7989,4373.0,4372.9,11.8289]
[1756897106039,0.6032,4373.0,4372.9,11.8289]
[1756897106346,0.8352,4373.0,4372.9,11.9704]
[1756897106839,1.0309,4373.0,4372.9,0.1946]
[1756897110747,1.0309,4373.0,4372.9,0.3953]
[1756897111154,0.8352,4373.0,4372.9,0.5368]
[1756897111451,0.6032,4373.0,4372.9,0.5368]
[1756897111753,0.8352,4373.0,4372.9,0.3953]
[1756897112453,0.6032,4373.0,4372.9,11.9704]
[1756897112654,0.8352,4373.0,4372.9,11.9704]
[1756897113550,0.8352,4373.0,4372.9,11.8289]
[1756897117557,1.0309,4373.0,4372.9,11.8289]
[1756897118955,1.0309,4373.0,4372.9,11.9704]
[1756897119154,0.5206,4373.0,4372.9,11.9704]
[1756897119549,0.2886,4373.0,4372.9,11.9704]